bitfinex-derivatives/quotes_ETHF0:USTF0_20210110
["timestamp","ask_amount","ask_price","bid_price","bid_amount"]
[1610308660115,1.43118893,1261.4,1261.3,4.00959]
[1610308660316,1.79016911,1261.6,1261.3,4.00959]
[1610308660514,1.7906335,1261.7,1261.3,4.00959]
[1610308660914,1.79132963,1261.8,1261.3,4.00959]
[1610308661114,1.79132963,1261.8,1261.3,5.78809]
[1610308661514,1.79132963,1261.8,1261.4,1.21802378]
[1610308661715,1.79204971,1261.9,1261.4,1.21802378]
[1610308662117,0.7314351,1261.7,1261.4,1.21802378]
[1610308662318,1.79174091,1261.8,1261.4,1.21802378]
[1610308663617,3.13929473,1261.9,1261.4,1.21802378]
[1610308663618,1.79034422,1261.6,1261.4,1.21802378]
[1610308664020,3.13480295,1261.5,1261.4,1.21802378]
[1610308664418,6.2594351,1261.5,1261.4,1.21802378]
[1610308664819,8.04127534,1261.5,1261.4,1.21802378]
[1610308665021,0.73220384,1261.6,1261.4,1.21802378]
[1610308665417,11.60567384,1261.6,1261.4,1.21802378]
[1610308665718,12.33795463,1261.6,1261.4,1.21802378]
[1610308665916,42.33795463,1261.6,1261.0,2.2387]
[1610308666118,4.00959,1261.1,1261.0,2.2387]
[1610308666317,11.59183536,1261.2,1260.8,4.00959]
[1610308666718,9.80628814,1260.9,1260.8,4.00959]
[1610308667320,15.38589097,1261.4,1260.8,4.00959]
[1610308667321,11.58236435,1261.0,1260.8,4.00959]
[1610308667519,11.58516198,1261.1,1260.8,4.00959]
[1610308668019,11.58185755,1261.0,1260.8,4.00959]
[1610308668219,4.00959,1260.9,1260.4,2.0911]
[1610308668420,15.58490376,1260.9,1260.4,2.0911]
[1610308668619,15.58490376,1260.9,1260.0,2.1816]
[1610308668819,15.58490376,1260.9,1259.3,58.7424]
[1610308668820,9.78901357,1260.5,1259.3,58.7424]
[1610308669021,1.77851859,1259.8,1259.3,58.7424]
[1610308669422,1.77767057,1259.7,1259.3,58.7424]
[1610308669723,1.77796998,1259.6,1259.3,58.7424]
[1610308670123,1.77685731,1259.5,1259.4,1.22026103]
[1610308670525,1.7772001,1259.6,1259.4,1.22026103]
[1610308670925,1.77800616,1259.7,1259.4,3.42626103]
[1610308671125,1.77842868,1259.8,1259.4,3.42626103]
[1610308671425,0.73272377,1259.6,1259.4,3.42626103]
[1610308671824,1.77747629,1259.7,1259.4,3.42626103]
[1610308672125,3.11288911,1259.7,1259.6,4.00959]
[1610308672527,5.17794076,1259.8,1259.6,4.00959]
[1610308672924,4.44508131,1259.8,1259.6,4.00959]
[1610308673128,3.84577088,1259.7,1259.6,4.00959]
[1610308673529,3.11293518,1259.7,1259.6,4.00959]
[1610308674330,4.44374856,1259.7,1259.6,4.00959]
[1610308675430,7.98831957,1259.7,1259.6,4.00959]
[1610308675830,37.98831957,1259.7,1259.6,4.00959]
[1610308676232,11.71203544,1259.7,1259.6,4.00959]
[1610308676433,9.75681165,1259.7,1259.6,4.00959]
[1610308676830,10.4901083,1259.7,1259.6,4.00959]
[1610308677030,7.9896589,1259.7,1259.6,4.00959]
[1610308677432,6.21699526,1259.7,1259.6,4.00959]
[1610308678032,6.95007981,1259.7,1259.6,4.00959]
[1610308678432,7.99201175,1259.8,1259.6,4.00959]
[1610308678634,8.72322473,1259.7,1259.6,4.00959]
[1610308679037,9.75862392,1259.7,1259.4,2.206]
[1610308679443,7.98419144,1259.5,1258.6,56.2152]
[1610308679833,1.77322231,1259.0,1258.6,56.2152]
[1610308680036,1.77371602,1259.1,1258.6,56.2152]
[1610308680234,1.77371602,1259.1,1259.0,4.00959]
[1610308680634,1.77371602,1259.1,1259.0,6.49959]
[1610308680836,3.10761568,1259.1,1259.0,6.49959]
[1610308681235,35.16753143,1259.1,1259.0,6.49959]
[1610308681434,34.43435504,1259.1,1259.0,6.49959]
[1610308682035,9.19376108,1259.1,1259.0,6.49959]
[1610308682235,9.92713304,1259.1,1259.0,6.49959]
[1610308682435,7.97147447,1259.1,1259.0,6.49959]
[1610308682737,6.93661088,1259.1,1259.0,6.49959]
[1610308683336,6.2032313,1259.1,1259.0,6.49959]
[1610308683538,9.9249113,1259.1,1259.0,6.49959]
[1610308684342,9.73924231,1259.2,1259.0,7.7205696]
[1610308684538,8.70403338,1259.1,1259.0,7.7205696]
[1610308684939,7.9706478,1259.1,1259.0,7.7205696]
[1610308685242,6.20332137,1259.1,1259.0,7.7205696]
[1610308685641,7.97443383,1259.2,1259.0,7.7205696]
[1610308686544,6.20261494,1259.1,1259.0,7.7205696]
[1610308686945,6.20261494,1259.1,1259.0,6.49959]
[1610308687545,30.0,1259.1,1259.0,6.49959]
[1610308687748,7.97443383,1259.2,1259.0,6.49959]
[1610308687947,1.95601331,1259.1,1259.0,6.49959]
[1610308688148,9.7389999,1259.1,1259.0,6.49959]
[1610308688348,9.7389999,1259.1,1259.0,7.71979971]
[1610308688548,9.74062032,1259.2,1259.0,7.71979971]
[1610308688748,10.47299105,1259.1,1259.0,7.71979971]
[1610308689150,9.73946427,1259.1,1259.0,7.71979971]
[1610308689448,10.47293607,1259.1,1259.0,7.71979971]
[1610308689850,9.73946427,1259.1,1259.0,7.71979971]
[1610308690050,9.73946427,1259.1,1259.0,3.71020971]
[1610308690252,43.74905427,1259.1,1259.0,3.71020971]
[1610308690451,31.95599074,1259.1,1259.0,1.22020971]
[1610308690950,1.95599074,1259.1,1259.0,1.22020971]
[1610308691149,1.95599074,1259.1,1258.9,1.22125326]
[1610308691350,9.74822393,1259.0,1258.9,1.22125326]
[1610308691950,39.74822393,1259.0,1258.8,4.00959]
[1610308692151,30.0,1259.0,1258.8,4.00959]
[1610308692351,11.69344837,1258.9,1258.8,4.00959]
[1610308692754,41.69344837,1258.9,1258.8,4.00959]
[1610308693152,31.95605958,1258.9,1258.1,61.3845]
[1610308693552,43.44927255,1258.9,1258.1,61.3845]
[1610308693755,6.18511873,1258.2,1258.1,61.3845]
[1610308693954,36.18511873,1258.2,1258.1,61.3845]
[1610308694254,41.95843204,1258.2,1257.9,4.00959]
[1610308694455,1.95681979,1258.2,1257.9,4.00959]
[1610308694654,6.18170081,1258.0,1257.9,4.00959]
[1610308695055,6.91554815,1258.0,1257.9,4.00959]
[1610308695455,0.73384734,1258.0,1257.9,4.00959]
[1610308695655,5.15292742,1258.0,1257.9,4.00959]
[1610308695955,2.50126559,1258.0,1257.9,4.00959]
[1610308696555,2.14866663,1258.0,1257.9,5.23028327]
[1610308697355,0.73384734,1258.0,1257.9,4.00959]
[1610308697755,5.8996,1258.1,1257.9,4.00959]
[1610308697957,5.8996,1258.1,1257.9,6.27429]
[1610308698156,5.8996,1258.1,1257.9,7.49486068]
[1610308698755,1.41714146,1258.3,1257.9,7.49486068]
[1610308699359,1.41699193,1258.4,1257.9,7.49486068]
[1610308699558,1.41699193,1258.4,1258.0,1.22018831]
[1610308700159,1.41652547,1258.3,1258.0,1.22018831]
[1610308700561,1.41567872,1258.1,1258.0,1.22018831]
[1610308701360,3.09681577,1258.1,1258.0,1.22018831]
[1610308701961,6.18501711,1258.1,1258.0,1.22018831]
[1610308702361,6.91881926,1258.1,1258.0,5.22977831]
[1610308702563,7.94437776,1258.1,1258.0,5.22977831]
[1610308702963,39.70543666,1258.1,1258.0,1.22018831]
[1610308703364,1.95716218,1258.1,1258.0,1.22018831]
[1610308703763,1.95716218,1258.1,1256.6,57.0334]
[1610308703964,9.70700542,1258.1,1256.6,57.0334]
[1610308704364,9.70700542,1258.1,1258.0,4.00959]
[1610308704565,0.73401037,1258.1,1258.0,4.00959]
[1610308704965,10.44102958,1258.1,1258.0,4.00959]
[1610308705365,7.94582591,1258.1,1258.0,4.00959]
[1610308705565,5.15405245,1258.1,1258.0,4.00959]
[1610308705967,6.181456,1258.1,1258.0,4.00959]
[1610308706266,7.94297368,1258.1,1258.0,4.00959]
[1610308706669,7.94297368,1258.1,1258.0,5.2304193]
[1610308707275,9.70709887,1258.2,1258.0,5.2304193]
[1610308707576,9.70088129,1258.1,1258.0,1.2208293]
[1610308707976,11.46387652,1258.3,1258.0,1.2208293]
[1610308708177,11.46387652,1258.3,1257.8,2.0382]
[1610308708379,11.46298745,1258.2,1257.8,2.0382]
[1610308708578,7.9346783,1257.9,1257.8,2.0382]
[1610308708880,7.9346783,1257.9,1257.5,1.5336]
[1610308709279,9.69663244,1258.1,1257.5,1.5336]
[1610308709479,9.69663244,1258.1,1257.8,1.22114648]
[1610308709678,7.93392428,1257.9,1257.8,1.22114648]
[1610308710078,15.86597768,1257.9,1257.8,1.22114648]
[1610308710279,15.86597768,1257.9,1257.8,5.23073648]
[1610308710479,18.36047474,1257.9,1257.8,5.23073648]
[1610308710880,18.36047474,1257.9,1257.8,4.00959]
[1610308711580,8.66798916,1257.9,1257.8,4.00959]
[1610308711982,20.10947388,1257.9,1257.8,4.00959]
[1610308712382,8.66798916,1257.9,1257.8,4.00959]
[1610308712782,20.10941926,1257.9,1257.8,4.00959]
[1610308713183,8.66798916,1257.9,1257.8,4.00959]
[1610308713384,18.35784818,1257.9,1257.8,4.00959]
[1610308713783,18.35784818,1257.9,1257.8,5.23077742]
[1610308714785,16.60247815,1257.9,1257.8,5.23077742]
[1610308715383,8.66798916,1257.9,1257.8,5.23077742]
[1610308715786,14.84470369,1257.9,1257.8,5.23077742]
[1610308716785,16.60371257,1257.9,1257.8,5.23077742]
[1610308717187,18.36368259,1257.9,1257.8,5.23077742]
[1610308717886,16.60461509,1257.9,1257.8,5.23077742]
[1610308718685,8.66798916,1257.9,1257.8,5.23077742]
[1610308719386,14.8465429,1257.9,1257.8,5.23077742]
[1610308719988,8.66798916,1257.9,1257.8,5.23077742]
[1610308720788,11.76227997,1257.9,1257.8,5.23077742]
[1610308721288,10.43462513,1257.9,1257.8,5.23077742]
[1610308722090,10.08225277,1257.9,1257.8,5.23077742]
[1610308722389,9.7292089,1257.9,1257.8,5.23077742]
[1610308723288,7.93392428,1257.9,1257.8,5.23077742]
[1610308723890,1.06244209,1258.2,1257.8,5.23077742]
[1610308724091,1.41789369,1258.6,1257.8,5.23077742]
[1610308724291,1.41850722,1258.7,1258.5,4.00959]
[1610308724490,1.41850722,1258.7,1258.5,6.34329]
[1610308724692,1.41939937,1258.8,1258.5,6.34329]
[1610308724990,1.41939937,1258.8,1258.6,1.22110256]
[1610308725390,1.41893759,1258.7,1258.6,1.22110256]
[1610308725790,1.41958513,1258.8,1258.6,1.22110256]
[1610308726193,1.77280822,1258.7,1258.6,1.22110256]
[1610308726392,3.10684641,1258.8,1258.5,6.34329]
[1610308726891,1.77246888,1258.6,1258.5,6.34329]
[1610308727094,3.10513329,1258.6,1258.5,6.34329]
[1610308727694,3.10513329,1258.6,1258.5,7.56466718]
[1610308727901,6.19873749,1258.6,1258.5,7.56466718]
[1610308728097,9.73069424,1258.6,1258.5,7.56466718]
[1610308728498,0.73362968,1258.6,1258.5,7.56466718]
[1610308729096,13.80475614,1258.7,1258.5,4.00959]
[1610308729496,12.21621625,1258.6,1258.5,4.00959]
[1610308729698,0.73373725,1258.6,1258.5,4.00959]
[1610308730296,13.23575649,1258.6,1258.5,4.00959]
[1610308730496,0.73396042,1258.6,1258.5,4.00959]
[1610308731998,13.96663139,1258.6,1258.5,4.00959]
[1610308732797,0.73396042,1258.6,1258.5,4.00959]
[1610308734198,15.71219062,1258.6,1258.5,4.00959]
[1610308734398,19.72178062,1258.6,1258.5,4.00959]
[1610308734598,19.72178062,1258.6,1257.2,60.1579]
[1610308734800,4.41053763,1257.3,1257.2,60.1579]
[1610308735403,6.90715058,1257.3,1257.2,60.1579]
[1610308735804,0.73423271,1257.3,1257.2,60.1579]
[1610308736105,6.91297268,1257.3,1257.2,61.38081108]
[1610308736304,6.91297268,1257.3,1257.2,65.39040108]
[1610308736903,0.73423271,1257.3,1257.2,65.39040108]
[1610308737103,8.67284996,1257.3,1257.2,65.39040108]
[1610308737505,10.43401516,1257.3,1257.2,65.39040108]
[1610308738204,8.67292337,1257.3,1257.2,65.39040108]
[1610308739004,8.67292337,1257.3,1257.2,64.16749]
[1610308739205,10.42513627,1257.3,1257.2,64.16749]
[1610308739805,0.73423271,1257.3,1257.2,64.16749]
[1610308741206,0.73423271,1257.3,1257.2,4.00959]
[1610308742506,14.4329568,1257.4,1257.2,4.00959]
[1610308742705,12.18902668,1257.3,1257.2,4.00959]
[1610308744407,16.19861668,1257.3,1257.2,4.00959]
[1610308744805,4.74416047,1257.3,1257.2,4.00959]
[1610308745705,17.95237914,1257.3,1255.8,66.5395]
[1610308745908,47.95237914,1257.3,1255.8,66.5395]
[1610308746106,1.05603948,1255.9,1255.8,66.5395]
[1610308746308,1.40774901,1255.9,1255.8,66.5395]
[1610308746506,1.40774901,1255.9,1255.8,70.54909]
[1610308746706,2.14249563,1255.9,1255.8,70.54909]
[1610308747108,1.40774901,1255.9,1255.8,70.54909]
[1610308747307,1.40774901,1255.9,1255.8,71.77273035]
[1610308747708,1.75872485,1255.9,1255.8,71.77273035]
[1610308748311,3.08070229,1255.9,1255.8,71.77273035]
[1610308748713,4.39768003,1255.9,1255.8,71.77273035]
[1610308749113,6.89157558,1256.0,1255.8,71.77273035]
[1610308749513,8.65680357,1256.0,1255.8,71.77273035]
[1610308749713,7.92184401,1256.0,1255.8,71.77273035]
[1610308750012,8.666562,1255.9,1255.8,70.54909]
[1610308750313,7.93156651,1255.9,1255.8,70.54909]
[1610308750714,7.93156651,1255.9,1255.8,4.00959]
[1610308750914,10.4282331,1256.0,1255.8,4.00959]
[1610308751314,8.67608586,1255.9,1255.8,4.00959]
[1610308751716,10.44465766,1255.9,1255.8,4.00959]
[1610308752116,0.73508689,1255.9,1255.8,4.00959]
[1610308752314,9.71259106,1255.9,1255.8,4.00959]
[1610308754218,0.73505085,1256.0,1255.8,4.00959]
[1610308754821,9.69146441,1255.9,1255.8,4.00959]
[1610308755620,0.73505085,1256.0,1255.8,4.00959]
[1610308755823,11.43171178,1255.9,1255.8,4.00959]
[1610308756422,0.73505085,1256.0,1255.8,4.00959]
[1610308757022,13.90012698,1256.0,1255.8,4.00959]
[1610308757222,13.90012698,1256.0,1254.3,45.2979]
[1610308757422,43.90012698,1256.0,1254.3,45.2979]
[1610308757623,1.05186716,1254.4,1254.3,45.2979]
[1610308758024,3.06808808,1254.5,1254.3,45.2979]
[1610308758224,1.75120577,1254.4,1254.3,45.2979]
[1610308758623,1.75120577,1254.4,1254.3,49.30749]
[1610308759624,3.06623989,1254.4,1254.3,49.30749]
[1610308760026,4.37689203,1254.4,1254.3,49.30749]
[1610308760225,8.60179942,1254.4,1254.3,5.23484283]
[1610308760625,7.86607685,1254.4,1254.3,5.23484283]
[1610308761026,4.37373721,1254.4,1254.3,5.23484283]
[1610308761426,3.06378187,1254.5,1254.3,5.23484283]
[1610308761626,1.74745977,1254.4,1254.3,7.54594283]
[1610308762030,7.86793759,1254.9,1254.3,7.54594283]
[1610308762031,1.40133598,1254.8,1254.3,7.54594283]
[1610308762427,3.06980164,1255.1,1254.3,7.54594283]
[1610308762428,1.40231683,1255.1,1254.3,7.54594283]
[1610308762628,1.40231683,1255.1,1255.0,5.72389]
[1610308762829,9.79634205,1255.2,1255.0,5.72389]
[1610308763028,1.40215556,1255.1,1255.0,5.72389]
[1610308763428,5.4174,1255.2,1255.0,5.72389]
[1610308763628,6.82096635,1255.2,1255.0,5.72389]
[1610308764632,5.4174,1255.2,1255.1,1.22412602]
[1610308765030,7.17110155,1255.2,1255.1,1.22412602]
[1610308765431,6.82082008,1255.2,1255.1,1.22412602]
[1610308765831,5.4174,1255.2,1255.1,1.22412602]
[1610308767234,1.40384822,1255.4,1255.1,1.22412602]
[1610308767433,1.40454845,1255.5,1255.1,1.22412602]
[1610308767834,1.40459161,1255.7,1255.1,1.22412602]
[1610308768234,1.75573951,1255.9,1255.1,1.22412602]
[1610308768235,1.4051875,1255.9,1255.1,1.22412602]
[1610308768433,1.75648437,1256.0,1255.1,1.22412602]
[1610308768434,1.40451523,1255.8,1255.1,1.22412602]
[1610308768634,1.40451523,1255.8,1255.7,4.00959]
[1610308768835,1.40451523,1255.8,1254.0,33.3990697]
[1610308769035,1.40364581,1255.7,1254.0,33.3990697]
[1610308769336,1.40484655,1256.0,1254.2,0.48997268]
[1610308769535,1.40484655,1256.0,1255.0,49.1522]
[1610308769737,1.40484655,1256.0,1255.0,80.63360569]
[1610308769935,1.75605818,1256.1,1255.0,80.63360569]
[1610308770136,1.40495982,1256.0,1255.0,80.63360569]
[1610308770640,1.40495982,1256.0,1255.9,4.00959]
[1610308770840,1.40596068,1256.1,1255.9,5.86139]
[1610308771238,7.90856477,1256.7,1255.9,5.86139]
[1610308771239,1.75909746,1256.4,1255.9,5.86139]
[1610308771840,1.75933986,1256.3,1256.0,1.22339968]
[1610308772440,1.40749998,1256.1,1256.0,1.22339968]
[1610308772640,1.40749998,1256.1,1256.0,3.50959968]
[1610308772841,1.40816406,1256.2,1256.0,3.50959968]
[1610308773241,1.75892068,1256.2,1256.0,3.50959968]
[1610308773542,1.40777141,1256.2,1256.1,30.0]
[1610308773942,1.40940385,1256.4,1256.1,31.7768]
[1610308774343,1.41051062,1256.5,1256.1,31.7768]
[1610308774542,1.41051062,1256.5,1256.4,4.00959]
[1610308774942,1.41051062,1256.5,1256.4,6.15259]
[1610308775443,1.41255824,1256.7,1256.4,6.15259]
[1610308775843,1.76569779,1256.9,1256.4,6.15259]
[1610308776242,1.76569779,1256.9,1256.5,1.22223516]
[1610308776543,1.7658928,1257.0,1256.8,4.00959]
[1610308776744,1.7658928,1257.0,1256.8,5.89019]
[1610308777648,1.76752268,1257.2,1256.8,5.89019]
[1610308778046,1.76815768,1257.3,1256.8,5.89019]
[1610308778246,4.42481459,1257.6,1256.8,5.89019]
[1610308778247,1.76697607,1257.1,1256.8,5.89019]
[1610308778646,4.42012549,1257.3,1257.0,4.00959]
[1610308779047,3.09441023,1257.1,1257.0,4.00959]
[1610308779646,4.41869421,1257.2,1257.0,4.00959]
[1610308779847,4.41869421,1257.2,1256.8,1.8806]
[1610308780148,4.41441774,1257.1,1256.8,1.8806]
[1610308780549,3.08993089,1256.9,1256.1,1.7768]
[1610308780748,1.76181681,1256.6,1256.1,1.7768]
[1610308780949,1.76181681,1256.6,1255.1,33.405]
[1610308781149,1.76253628,1256.8,1255.1,33.405]
[1610308781349,1.76253628,1256.8,1255.1,35.8493]
[1610308781551,1.76449393,1257.1,1255.4,0.24479977]
[1610308781753,1.76579821,1257.3,1255.6,0.24479064]
[1610308782151,1.76579821,1257.3,1255.4,1.7623]
[1610308782152,1.76417789,1257.2,1255.4,2.00712708]
[1610308782553,1.76311824,1257.1,1255.4,1.7623]
[1610308782752,1.76178761,1257.0,1255.4,1.7623]
[1610308782950,1.76178761,1257.0,1255.4,31.7623]
[1610308783152,1.76178761,1257.0,1255.5,1.2229447]
[1610308783653,3.08791731,1257.3,1255.5,1.2229447]
[1610308783856,1.76250519,1257.2,1255.5,1.4677362]
[1610308784356,1.76263692,1257.3,1255.5,1.4677362]
[1610308784654,1.76263692,1257.3,1257.2,4.00959]
[1610308785055,1.76333354,1257.4,1257.2,4.00959]
[1610308785255,1.76407288,1257.5,1257.2,4.00959]
[1610308785656,1.76438129,1257.4,1257.2,4.00959]
[1610308785855,1.76438129,1257.4,1257.3,1.2222341]
[1610308786056,1.76438129,1257.4,1257.3,3.3534341]
[1610308786555,1.7658109,1257.5,1257.3,3.3534341]
[1610308787857,1.76611584,1257.6,1257.3,3.3534341]
[1610308788059,3.0951148,1257.7,1257.3,3.3534341]
[1610308788060,1.76656286,1257.7,1257.3,3.3534341]
[1610308788457,1.76656286,1257.7,1257.3,33.3534341]
[1610308788658,1.76656286,1257.7,1257.6,4.00959]
[1610308788857,4.42070486,1258.0,1257.6,36.33549]
[1610308788858,1.76733648,1257.8,1257.6,36.33549]
[1610308789258,1.76968054,1258.2,1257.6,36.33549]
[1610308789658,1.77005108,1258.3,1257.6,36.33549]
[1610308789857,1.77179005,1258.5,1257.7,1.22113746]
[1610308790258,1.77262677,1258.6,1257.7,1.22113746]
[1610308790658,1.77462964,1258.9,1257.7,1.22113746]
[1610308791261,1.77726086,1259.2,1257.7,1.22113746]
[1610308791458,1.77778581,1259.3,1258.8,4.00959]
[1610308791658,1.77778581,1259.3,1258.9,30.0]
[1610308791859,3.11707143,1259.6,1258.9,30.0]
[1610308792259,3.11601691,1259.7,1258.9,30.0]
[1610308792460,3.11901653,1260.0,1258.9,30.0]
[1610308792861,4.45720187,1260.4,1259.0,1.22002746]
[1610308793262,8.01940116,1260.7,1259.0,1.22002746]
[1610308793263,4.46086233,1260.7,1260.3,4.00959]
[1610308793462,8.02598708,1260.9,1260.3,35.78349]
[1610308793463,4.46077685,1260.9,1260.3,35.78349]
[1610308793863,4.46236622,1261.0,1260.3,35.78349]
[1610308794264,4.46348078,1261.1,1260.3,35.78349]
[1610308794462,4.46348078,1261.1,1260.3,5.78349]
[1610308794662,4.46348078,1261.1,1260.3,35.78349]
[1610308794864,6.24365616,1261.2,1260.3,35.78349]
[1610308795063,6.24349582,1261.3,1260.3,35.78349]
[1610308795365,8.02607849,1261.4,1260.3,35.78349]
[1610308795366,6.24624461,1261.4,1261.2,4.00959]
[1610308795963,6.24605356,1261.5,1261.2,4.00959]
[1610308796263,6.24354214,1261.4,1261.2,4.00959]
[1610308797064,6.23798566,1261.3,1261.2,4.00959]
[1610308797266,8.38618566,1261.3,1261.2,4.00959]
[1610308797464,10.16633722,1261.3,1261.2,4.00959]
[1610308797665,11.94483511,1261.3,1261.2,4.00959]
[1610308798077,2.1482,1261.3,1261.2,4.00959]
[1610308799066,15.46578952,1261.3,1261.2,4.00959]
[1610308799465,2.1482,1261.3,1258.8,2.1077]
[1610308799665,17.225857,1261.3,1258.2,0.24428016]
[1610308799865,17.225857,1261.3,1258.1,0.24430087]
[1610308799866,7.97965326,1260.3,1258.1,0.24430087]
[1610308800265,9.73235326,1260.3,1258.1,0.24430087]
[1610308800667,1.7527,1260.3,1258.1,0.24430087]
[1610308800966,1.7527,1260.3,1258.3,0.24433308]
[1610308801166,1.7527,1260.3,1258.3,1.83753308]
[1610308801368,7.98904723,1260.6,1260.2,4.00959]
[1610308801568,7.99727341,1260.8,1260.2,6.30349]
[1610308802671,7.99727993,1260.6,1260.2,6.30349]
[1610308802871,7.99427891,1260.5,1260.2,6.30349]
[1610308803371,9.76979893,1260.7,1260.4,4.00959]
[1610308803372,7.99966458,1260.7,1260.4,4.00959]
[1610308803771,7.99567311,1260.6,1260.4,4.00959]
[1610308803971,8.00044654,1260.5,1260.4,4.00959]
[1610308804673,8.00044654,1260.5,1260.2,2.2939]
[1610308804873,9.78118744,1260.6,1260.2,2.2939]
[1610308805073,9.78118744,1260.6,1259.6,1.5562]
[1610308805274,11.53641671,1260.4,1260.1,4.00959]
[1610308805776,11.53218963,1260.3,1260.1,4.00959]
[1610308805975,11.52798059,1260.2,1260.1,4.00959]
[1610308806577,1.9162,1260.3,1260.1,4.00959]
[1610308806880,11.53858056,1260.4,1260.1,4.00959]
[1610308807080,7.99662853,1260.2,1260.1,4.00959]
[1610308807478,7.99750822,1260.3,1260.1,4.00959]
[1610308807679,7.99683165,1260.2,1260.1,4.00959]
[1610308808079,15.10079603,1261.1,1260.1,4.00959]
[1610308808080,8.00062074,1260.3,1260.1,4.00959]
[1610308808680,7.99597435,1260.2,1260.1,4.00959]
[1610308809079,7.99760004,1260.3,1260.1,4.00959]
[1610308809380,8.00070072,1260.4,1260.1,4.00959]
[1610308810282,8.00453433,1260.5,1260.1,4.00959]
[1610308811383,9.78125842,1260.7,1260.4,4.00959]
[1610308811384,8.00525727,1260.6,1260.4,4.00959]
[1610308811783,8.00525727,1260.6,1260.4,6.08329]
[1610308811984,8.01028102,1260.8,1260.4,6.08329]
[1610308812384,8.01253939,1261.0,1260.4,6.08329]
[1610308812584,8.00847643,1260.9,1260.4,6.08329]
[1610308812883,8.00847643,1260.9,1260.5,1.21958549]
[1610308813483,8.00847643,1260.9,1260.8,4.00959]
[1610308813683,8.01031079,1261.0,1260.8,4.00959]
[1610308814183,8.01031079,1261.0,1260.9,1.21939602]
[1610308814384,8.01635638,1261.2,1260.9,1.21939602]
[1610308814985,5.6691,1261.3,1260.9,1.21939602]
[1610308815384,5.6691,1261.3,1261.2,6.42359]
[1610308816286,8.02251494,1261.5,1261.2,6.42359]
[1610308816484,8.02909888,1261.6,1261.2,6.42359]
[1610308816684,8.03526038,1261.8,1261.2,6.42359]
[1610308817087,15.17374823,1262.7,1261.2,6.42359]
[1610308817088,8.03946743,1262.0,1261.2,6.42359]
[1610308817285,8.03946743,1262.0,1261.3,1.21834784]
[1610308817485,8.03946743,1262.0,1261.9,4.00959]
[1610308817684,8.04437766,1262.1,1261.9,5.94789]
[1610308818485,9.83249376,1262.3,1262.0,1.21816787]
[1610308819187,9.83731041,1262.5,1262.0,1.21816787]
[1610308819389,11.62000363,1262.6,1262.4,4.00959]
[1610308819588,11.62000363,1262.6,1262.4,6.42089]
[1610308819790,9.83476311,1262.5,1262.4,6.42089]
[1610308819990,11.60862924,1262.6,1262.4,6.42089]
[1610308820991,19.92763423,1263.8,1262.4,6.42089]
[1610308820992,9.82751672,1262.5,1262.4,6.42089]
[1610308821693,9.83172061,1262.6,1262.4,6.42089]
[1610308822894,9.83627261,1262.8,1262.4,6.42089]
[1610308823294,9.85440076,1263.3,1262.4,6.42089]
[1610308823491,9.85440076,1263.3,1262.7,4.00959]
[1610308823693,9.87570738,1263.9,1262.7,5.63899]
[1610308824092,15.4570804,1264.0,1262.7,5.63899]
[1610308824292,9.87443393,1263.9,1262.7,5.63899]
[1610308824493,5.5796,1264.0,1262.8,1.21650198]
[1610308824693,15.45435695,1264.0,1262.8,1.21650198]
[1610308824893,9.87475695,1264.0,1262.8,1.21650198]
[1610308825094,9.87755145,1264.2,1262.8,1.21650198]
[1610308825493,9.88441115,1264.4,1264.1,4.00959]
[1610308825694,9.88720786,1264.5,1264.1,6.39179]
[1610308826397,9.88312871,1264.6,1264.1,6.39179]
[1610308827200,9.88208186,1264.7,1264.1,6.39179]
[1610308827401,9.88634516,1264.9,1264.6,4.00959]
[1610308827599,9.88634516,1264.9,1264.6,6.47959]
[1610308827798,11.68304578,1265.1,1264.6,6.47959]
[1610308827799,9.89232567,1265.1,1264.6,6.47959]
[1610308828497,9.8902515,1265.0,1264.6,6.47959]
[1610308828899,17.07989365,1266.0,1264.6,6.47959]
[1610308828900,9.89549624,1265.2,1264.6,6.47959]
[1610308829100,11.69813074,1265.5,1264.6,6.47959]
[1610308829400,13.49037257,1265.7,1265.4,4.00959]
[1610308829599,13.49037257,1265.7,1265.4,5.53929]
[1610308829800,13.48674479,1265.6,1265.4,5.53929]
[1610308830005,13.48389805,1265.5,1265.4,5.53929]
[1610308831002,13.48622613,1265.6,1265.4,5.53929]
[1610308831401,13.48818061,1265.7,1265.4,5.53929]
[1610308831803,11.69365855,1265.5,1265.4,5.53929]
[1610308832302,11.69611975,1265.6,1265.4,5.53929]
[1610308832703,11.6915814,1265.5,1265.4,5.53929]
[1610308833806,11.69315737,1265.6,1265.4,5.53929]
[1610308834003,11.71064124,1265.8,1265.4,5.53929]
[1610308834405,13.52596666,1266.3,1265.4,5.53929]
[1610308834807,18.93455047,1267.8,1265.4,5.53929]
[1610308834808,11.72719921,1266.2,1265.4,5.53929]
[1610308835404,11.72719921,1266.2,1266.1,4.00959]
[1610308835804,11.72481211,1266.3,1266.1,5.75199]
[1610308836204,11.73599509,1266.4,1266.1,5.75199]
[1610308836407,11.74604482,1266.5,1266.1,5.75199]
[1610308837005,11.75945542,1266.7,1266.1,5.75199]
[1610308837405,11.76488254,1266.9,1266.6,4.00959]
[1610308837604,11.76532402,1267.0,1266.6,4.00959]
[1610308837805,11.76532402,1267.0,1266.6,5.90339]
[1610308838005,11.76093676,1266.9,1266.6,5.90339]
[1610308838606,11.76310919,1267.0,1266.6,5.90339]
[1610308839008,11.76686444,1267.1,1266.6,5.90339]
[1610308839207,4.13406444,1267.1,1266.6,5.90339]
[1610308839408,13.57645529,1267.4,1267.0,4.00959]
[1610308839608,13.57079744,1267.5,1267.0,4.00959]
[1610308839807,13.57079744,1267.5,1267.0,5.57749]
[1610308840009,13.56015315,1267.4,1267.0,5.57749]
[1610308840210,13.55092885,1267.2,1267.0,5.57749]
[1610308840912,13.55240849,1267.3,1267.0,5.57749]
[1610308841411,13.55240849,1267.3,1267.2,4.00959]
[1610308841613,13.56743348,1267.6,1267.2,4.00959]
[1610308842313,13.58423653,1267.8,1267.2,4.00959]
[1610308842716,13.5901176,1267.9,1267.2,4.00959]
[1610308843316,13.59371038,1268.0,1267.2,4.00959]
[1610308843516,13.59371038,1268.0,1267.9,6.11469]
[1610308844118,13.59897557,1268.1,1267.9,6.11469]
[1610308844520,13.60599761,1268.3,1267.9,6.11469]
[1610308845116,19.20368739,1268.4,1267.9,6.11469]
[1610308845417,13.60403684,1268.3,1267.9,2.1051]
[1610308845818,13.59950296,1268.2,1267.9,2.1051]
[1610308846017,13.59766317,1268.1,1267.9,2.1051]